[Event "EYTCC Open U18 2022"]
[Site "Thessaloniki"]
[Date "2022.07.17"]
[Round "6.29"]
[White "Bilych, Olexiy"]
[Black "Risteski, Emil"]
[Result "1/2-1/2"]
[ECO "B40"]
[WhiteElo "2365"]
[BlackElo "2405"]
[Annotator "ChessBase"]
[PlyCount "90"]
[EventDate "2022.07.12"]
[EventType "team-tourn"]
[EventCountry "GRE"]
[SourceTitle "playchess.com"]
[Source "ChessBase"]
[SourceQuality "1"]
[WhiteTeam "Ukraine"]
[BlackTeam "Macedonia"]
[WhiteTeamCountry "UKR"]
[BlackTeamCountry "MKD"]
[TimeControl "40/5400+30:1800+30"]

1. e4 {[%emt 0:00:01]} c5 {[%emt 0:00:17]} 2. Nf3 {[%emt 0:00:05]} e6 {[%emt 0:00:15]} 3. d4 {[%emt 0:00:06]} cxd4 {[%emt 0:00:05]} 4. Nxd4 {[%emt 0:00:34]} Nf6 {[%emt 0:00:05]} 5. Nc3 {[%emt 0:00:00]} Nc6 {[%emt 0:00:04]} 6. Nxc6 {[%emt 0:00:00]} bxc6 {[%emt 0:00:04]} 7. e5 {[%emt 0:00:00]} Nd5 {[%emt 0:00:09]} 8. Ne4 {[%emt 0:00:00]} Qc7 {[%emt 0:00:07]} 9. f4 {[%emt 0:00:00]} Qb6 {[%emt 0:00:04]} 10. c4 {[%emt 0:00:00]} Ne3 {[%emt 0:00:19]} 11. Qd3 {[%emt 0:00:00]} Bb4+ {[%emt 0:00:06]} 12. Bd2 {[%emt 0:00:18]} Ba6 {[%emt 0:00:08]} 13. Rc1 {[%emt 0:00:32]} Bxc4 {[%emt 0:01:22]} 14. Rxc4 {[%emt 0:02:50]} Nxc4 {[%emt 0:00:06]} 15. Qxc4 {[%emt 0:00:08]} Bxd2+ {[%emt 0:00:05]} 16. Nxd2 {[%emt 0:02:19]} Qxb2 {[%emt 0:00:13]} 17. Bd3 {[%emt 0:05:37]} O-O {[%emt 0:00:37]} 18. Ke2 {[%emt 0:07:48]} Rab8 {[%emt 0:00:21]} 19. Qe4 {[%emt 0:04:05]} g6 {[%emt 0:07:37]} 20. Bc4 {[%emt 0:02:10]} f6 {[%emt 0:07:17]} 21. Qd3 {[%emt 0:02:47]} fxe5 {[%emt 0:05:00]} 22. Qxd7 {[%emt 0:03:07]} exf4 {[%emt 0:02:45]} 23. Qxe6+ {[%emt 0:00:18]} Kh8 {[%emt 0:01:23]} 24. Rb1 {[%emt 0:00:14]} Rfe8 {[%emt 0:11:23]} 25. Rxb2 {[%emt 0:00:10]} Rxe6+ {[%emt 0:00:04]} 26. Bxe6 {[%emt 0:00:04]} Rxb2 {[%emt 0:00:02]} 27. Bb3 {[%emt 0:00:14]} c5 {[%emt 0:00:16]} 28. Kd3 {[%emt 0:00:16]} c4+ {[%emt 0:00:04]} 29. Bxc4 {[%emt 0:00:03]} Rb8 {[%emt 0:00:15]} 30. a4 {[%emt 0:18:26]} Kg7 {[%emt 0:01:16]} 31. a5 {[%emt 0:04:08]} Rd8+ {[%emt 0:04:11]} 32. Ke2 {[%emt 0:02:52]} Rd4 {[%emt 0:05:39]} 33. a6 {[%emt 0:02:52]} g5 {[%emt 0:05:58]} 34. Be6 {[%emt 0:10:24]} h5 {[%emt 0:05:17]} 35. h3 {[%emt 0:00:28]} Kf6 {[%emt 0:03:33]} 36. Bc8 {[%emt 0:00:23]} Ra4 {[%emt 0:00:52]} 37. Bb7 {[%emt 0:03:05]} g4 {[%emt 0:04:13]} 38. hxg4 {[%emt 0:03:00]} hxg4 {[%emt 0:00:11]} 39. Ne4+ {[%emt 0:02:19]} Ke5 {[%emt 0:01:30]} 40. Nc3 {[%emt 0:00:00]} Ra3 {[%emt 0:00:00]} 41. Nb5 {[%emt 0:06:44]} Ra2+ {[%emt 0:02:45]} 42. Kf1 {[%emt 0:00:35]} Ra1+ {[%emt 0:00:42]} 43. Kf2 {[%emt 0:00:18]} Ra2+ {[%emt 0:02:06]} 44. Kf1 {[%emt 0:02:59]} Ra1+ {[%emt 0:04:47]} 45. Kf2 {[%emt 0:00:18]} Ra2+ {[%emt 0:00:09]} 1/2-1/2

[Event "EYTCC Open U18 2022"]
[Site "Thessaloniki"]
[Date "2022.07.17"]
[Round "6.30"]
[White "Veljanoski, Andrej"]
[Black "Prokofiev, Valentyn"]
[Result "1-0"]
[ECO "B41"]
[WhiteElo "2162"]
[BlackElo "2286"]
[Annotator "ChessBase"]
[PlyCount "89"]
[EventDate "2022.07.12"]
[EventType "team-tourn"]
[EventCountry "GRE"]
[SourceTitle "playchess.com"]
[Source "ChessBase"]
[SourceQuality "1"]
[WhiteTeam "Macedonia"]
[BlackTeam "Ukraine"]
[WhiteTeamCountry "MKD"]
[BlackTeamCountry "UKR"]
[TimeControl "40/5400+30:1800+30"]

1. e4 {[%emt 0:00:33]} c5 {[%emt 0:00:02]} 2. Nf3 {[%emt 0:00:09]} e6 {[%emt 0:00:03]} 3. d4 {[%emt 0:00:06]} cxd4 {[%emt 0:00:03]} 4. Nxd4 {[%emt 0:00:22]} a6 {[%emt 0:00:03]} 5. c4 {[%emt 0:01:08]} Nf6 {[%emt 0:01:21]} 6. Nc3 {[%emt 0:00:58]} d6 {[%emt 0:00:45]} 7. Be3 {[%emt 0:02:40]} Be7 {[%emt 0:00:22]} 8. Be2 {[%emt 0:00:16]} O-O {[%emt 0:00:19]} 9. Qd2 {[%emt 0:02:21]} b6 {[%emt 0:01:06]} 10. f3 {[%emt 0:00:30]} Bb7 {[%emt 0:00:10]} 11. O-O-O {[%emt 0:03:05]} Nbd7 {[%emt 0:02:25]} 12. g4 {[%emt 0:00:49]} Rc8 {[%emt 0:02:56]} 13. g5 {[%emt 0:04:31]} Ne8 {[%emt 0:01:34]} 14. Kb1 {[%emt 0:03:24]} g6 {[%emt 0:05:34]} 15. h4 {[%emt 0:02:31]} e5 {[%emt 0:02:53]} 16. Nc2 {[%emt 0:03:43]} f5 {[%emt 0:06:57]} 17. exf5 {[%emt 0:12:24]} Rxf5 {[%emt 0:03:20]} 18. h5 {[%emt 0:15:46]} Nf8 {[%emt 0:04:03]} 19. hxg6 {[%emt 0:04:34]} hxg6 {[%emt 0:00:29]} 20. Nd5 {[%emt 0:06:03]} Rc5 {[%emt 0:07:21]} 21. Bxc5 {[%emt 0:02:05]} bxc5 {[%emt 0:00:11]} 22. Bd3 {[%emt 0:06:24]} Rxf3 {[%emt 0:03:33]} 23. Qh2 {[%emt 0:04:34]} Bxd5 {[%emt 0:02:37]} 24. Bxg6 {[%emt 0:05:48]} Nxg6 {[%emt 0:02:11]} 25. Qh7+ {[%emt 0:00:08]} Kf8 {[%emt 0:00:03]} 26. cxd5 {[%emt 0:00:23]} Bxg5 {[%emt 0:02:30]} 27. Qxg6 {[%emt 0:00:10]} Qf6 {[%emt 0:00:31]} 28. Qe4 {[%emt 0:00:43]} Rf4 {[%emt 0:06:47]} 29. Qe2 {[%emt 0:01:59]} a5 {[%emt 0:11:48]} 30. Rdf1 {[%emt 0:02:31]} Qf7 {[%emt 0:04:48]} 31. Rxf4 {[%emt 0:00:45]} Bxf4 {[%emt 0:02:36]} 32. Rd1 {[%emt 0:03:28]} Nc7 {[%emt 0:00:59]} 33. Qe4 {[%emt 0:00:26]} Nb5 {[%emt 0:04:59]} 34. a4 {[%emt 0:00:18]} Nd4 {[%emt 0:04:13]} 35. Nxd4 {[%emt 0:01:40]} cxd4 {[%emt 0:00:03]} 36. Rh1 {[%emt 0:00:30]} Kg8 {[%emt 0:01:59]} 37. Rg1+ {[%emt 0:00:44]} Kf8 {[%emt 0:00:06]} 38. Rh1 {[%emt 0:00:04]} Kg8 {[%emt 0:00:06]} 39. Rh3 {[%emt 0:01:06]} Be3 {[%emt 0:07:47]} 40. Qg4+ {[%emt 0:00:00]} Qg7 {[%emt 0:00:00]} 41. Qe6+ {[%emt 0:04:35]} Kf8 {[%emt 0:01:44]} 42. Qxd6+ {[%emt 0:01:12]} Ke8 {[%emt 0:00:04]} 43. Qe6+ {[%emt 0:00:31]} Kd8 {[%emt 0:00:05]} 44. d6 {[%emt 0:01:14]} d3 {[%emt 0:02:34]} 45. Rh8+ {[%emt 0:00:17]} 1-0

[Event "EYTCC Open U18 2022"]
[Site "Thessaloniki"]
[Date "2022.07.17"]
[Round "6.31"]
[White "Hulka, Valentyn"]
[Black "Jordanov, Mihail"]
[Result "1/2-1/2"]
[ECO "D00"]
[WhiteElo "2123"]
[BlackElo "2158"]
[Annotator "TA"]
[PlyCount "82"]
[EventDate "2022.07.12"]
[EventType "team-tourn"]
[EventCountry "GRE"]
[SourceTitle "playchess.com"]
[Source "ChessBase"]
[SourceQuality "1"]
[WhiteTeam "Ukraine"]
[BlackTeam "Macedonia"]
[WhiteTeamCountry "UKR"]
[BlackTeamCountry "MKD"]
[TimeControl "40/5400+30:1800+30"]

{[%evp 9,82,5,4,11,3,9,2,8,2,4,9,3,9,0,12,0,16,0,0,0,0,0,0,0,17,17,17,0,17,17,20,14,12,12,22,21,21,21,32,21,21,21,21,21,21,21,21,21,21,21,23,9,9,9,9,9,9,0,9,10,11,10,12,0,11,0,14,0,0,0,0,0,0,0,0]} 1. d4 {[%emt 0:00:01]} d5 {[%emt 0:00:09]} 2. g3 {[%emt 0:00:11]} c6 {[%emt 0:00:45]} 3. Nf3 {[%emt 0:00:34]} Nf6 {[%emt 0:00:26]} 4. c4 {[%emt 0:00:28]} Bf5 5. Nc3 e6 {[%emt 0:02:32]} 6. Nh4 {[%emt 0:00:02] D11: Slav Defence: 3 Nf3 sidelines and 3...Nf6 4 e3 Bg4.} dxc4 {[%emt 0:00:27]} 7. Nxf5 {[%emt 0:00:23]} exf5 {[%emt 0:00:05]} 8. e3 {[%emt 0:00:03]} Nbd7 {[%emt 0:00:20]} 9. Bxc4 {[%emt 0:00:14] [#] aiming for Qb3.} Nb6 {[%emt 0:00:07]} 10. Bb3 {[%emt 0:06:09]} Qd7 {[%emt 0:00:49]} 11. Qf3 {[%emt 0:04:14]} Bd6 {[%emt 0:09:33]} 12. Bd2 {[%emt 0:00:14] [#]} h5 $146 {[%emt 0:02:16]} ({Predecessor:} 12... O-O 13. h3 Bb4 14. Bc2 g6 15. O-O-O Nfd5 16. Nxd5 Bxd2+ 17. Rxd2 cxd5 18. Bd3 Rac8+ {1-0 (25) So,W (2770)-Shankland,S (2691) chess24.com INT 2021}) 13. h4 {[%emt 0:10:00]} O-O {[%emt 0:04:24]} 14. O-O {[%emt 0:04:40]} Rfe8 {[%emt 0:04:30]} 15. Rfe1 {[%emt 0:05:51]} Bf8 {[%emt 0:05:20]} 16. Rad1 {[%emt 0:02:27]} Nbd5 {[%emt 0:05:20]} 17. Nxd5 {[%emt 0:08:20]} cxd5 {[%emt 0:00:19]} 18. Rc1 {[%emt 0:00:03]} Rac8 {[%emt 0:09:55]} 19. Rxc8 {[%emt 0:27:48]} Rxc8 {[%emt 0:00:15]} 20. Rc1 {[%emt 0:00:19]} Rxc1+ {[%emt 0:07:27]} 21. Bxc1 {[%emt 0:00:10]} Qc6 {[%emt 0:00:37]} 22. Qd1 {[%emt 0:04:14]} Ne4 {[%emt 0:05:49]} 23. Kg2 {[%emt 0:03:04]} Bd6 {[%emt 0:07:12]} 24. Bd2 {[%emt 0:03:54]} g6 {[%emt 0:01:04]} 25. Be1 {[%emt 0:00:22]} (25. Ba5 {feels hotter.} Qb5 26. Be1 Kf8 27. a4) 25... Kg7 {[%emt 0:02:47][%cal Bg8g7,Bg7f8,Bf8e7,Be7d7,Bd7c7,Bc7c6,Bc6b6][%mdl 32]} 26. Qc2 {[%emt 0:02:46]} (26. a3 {is more complex.} Bc7 27. Bc2 Qb5 28. Qb1) 26... Qxc2 {[%emt 0:03:58]} 27. Bxc2 $11 {[%emt 0:00:01][%mdl 4096] Endgame KBB-KBN} Kf8 {[%emt 0:01:01]} 28. f3 {[%emt 0:01:00]} Nf6 {[%emt 0:00:08]} 29. Kf2 {[%emt 0:00:17]} Ke7 {[%emt 0:01:55]} 30. Ke2 {[%emt 0:00:14]} Kd7 {[%emt 0:01:25] The position is equal.} 31. Ba4+ {[%emt 0:00:15]} Kc7 {[%emt 0:00:59]} 32. Bb3 {[%emt 0:00:26][%cal Oe3e4]} Kc6 {[%emt 0:02:04]} 33. Ba4+ {[%emt 0:01:25]} b5 {[%emt 0:01:58]} 34. Bb3 {[%emt 0:00:13]} a6 {[%emt 0:02:23]} 35. Kf2 {[%emt 0:00:47]} Kb6 {[%emt 0:02:15]} 36. Ke2 {[%emt 0:00:18][%cal Oe3e4]} Kc6 {[%emt 0:01:12]} 37. Kf2 {[%emt 0:00:11]} Bc7 {[%emt 0:10:37]} 38. Ke2 {[%emt 0:03:36]} a5 {[%emt 0:01:07]} 39. a4 {[%emt 0:00:09]} b4 {[%emt 0:00:44]} 40. Bc2 {[%emt 0:00:00]} Bb6 {[%emt 0:00:00]} 41. Bd3 {[%emt 0:00:51]} Kd6 {[%emt 0:09:05] A rather calm draw.  Weighted Error Value: White=0.04 (flawless) /Black=0.03 (flawless)} 1/2-1/2

[Event "EYTCC Open U18 2022"]
[Site "Thessaloniki"]
[Date "2022.07.17"]
[Round "6.32"]
[White "Zlatkov, Anton"]
[Black "Podolskyi, Mykhailo"]
[Result "0-1"]
[ECO "B40"]
[WhiteElo "2149"]
[BlackElo "2025"]
[Annotator "TA"]
[PlyCount "113"]
[EventDate "2022.07.12"]
[EventType "team-tourn"]
[EventCountry "GRE"]
[SourceTitle "playchess.com"]
[Source "ChessBase"]
[SourceQuality "1"]
[WhiteTeam "Macedonia"]
[BlackTeam "Ukraine"]
[WhiteTeamCountry "MKD"]
[BlackTeamCountry "UKR"]
[TimeControl "40/5400+30:1800+30"]

{[%evp 12,113,6,17,15,-8,17,26,20,26,34,46,50,42,54,46,47,24,39,0,0,0,22,27,21,39,28,29,49,52,49,47,23,18,61,66,62,50,49,0,0,0,0,0,0,-40,-24,-28,0,0,0,0,0,0,0,-31,0,0,0,-41,-26,-102,-93,-135,-100,-110,-15,-34,-27,-17,-41,-44,-83,-70,-61,-83,-89,-96,-49,-54,-45,-45,-33,-107,-96,-114,-106,-134,-68,-67,-68,-1666,-5697,-5293,-4745,-4296,-3755,-29975,-29977,-29977,-29976,-29975,-29976,-29987]} 1. e4 {[%emt 0:00:04]} c5 {[%emt 0:00:35]} 2. Nf3 {[%emt 0:00:05]} e6 {[%emt 0:00:20]} 3. d3 {[%emt 0:01:19]} Nc6 {[%emt 0:01:46]} 4. g3 {[%emt 0:00:08]} d6 {[%emt 0:02:21]} 5. Bg2 {[%emt 0:00:17]} Nf6 {[%emt 0:01:06]} 6. O-O {[%emt 0:00:47]} Be7 {[%emt 0:01:40]} 7. Re1 {[%emt 0:08:21]} O-O {[%emt 0:03:08] B30: Sicilian: 2...Nc6 3 Bb5, lines without ...g6.} 8. d4 {[%emt 0:01:48]} d5 {[%emt 0:18:40]} 9. exd5 {[%emt 0:15:10] [#]} Nxd5 $146 {[%emt 0:00:23] White has an edge.} ({Predecessor:} 9... exd5 10. Nc3 Bg4 11. Be3 c4 12. Ne2 Qd7 13. c3 Ne4 14. Nf4 g5 15. Nh3 Bxh3 16. Ne5 Nxe5 17. dxe5 Bxg2 18. Kxg2 {0-1 (21) Robers,F-Hoermann,G freechess.de 2016}) 10. dxc5 {[%emt 0:06:57]} Bxc5 {[%emt 0:00:22]} 11. Qe2 {[%emt 0:00:51]} Nf6 {[%emt 0:26:12][%cal Oe6e5]} 12. Nc3 {[%emt 0:05:46]} Qe7 {[%emt 0:02:41]} 13. Bg5 {[%emt 0:16:35]} Bb4 {[%emt 0:05:46]} 14. Qe3 {[%emt 0:09:01][%cal Oc3e4]} h6 {[%emt 0:06:00]} 15. Bf4 {[%emt 0:02:39]} (15. Bh4 $5 {[%cal Rc3e4]}) 15... Bd7 {[%emt 0:09:21]} 16. Rad1 {[%emt 0:01:12]} Rac8 {[%emt 0:01:51]} 17. a3 {[%emt 0:03:40]} Bc5 {[%emt 0:01:53]} 18. Qe2 {[%emt 0:01:42]} Rfd8 {[%emt 0:00:24]} 19. Ne4 {[%emt 0:01:01]} Nxe4 {[%emt 0:03:29]} 20. Qxe4 {[%emt 0:00:03]} Be8 {[%emt 0:00:16]} 21. b4 {[%emt 0:02:00][%cal Bb2b4,Bb4b5][%mdl 32]} Bd6 {[%emt 0:00:32]} 22. Bc1 {[%emt 0:02:47]} a5 {[%emt 0:01:49][%cal Ra5b4]} 23. b5 {[%emt 0:03:42]} Nb8 {[%emt 0:01:00]} 24. a4 {[%emt 0:00:01]} b6 {[%emt 0:03:21]} 25. Bf1 {[%emt 0:06:37]} (25. Nd4 $14) 25... Nd7 $11 {[%emt 0:01:20]} 26. Bd3 {[%emt 0:01:42] [#] White wants to mate with Qh7+.} Nf6 {[%emt 0:00:11] Inhibits Qh7+.} 27. Qh4 {[%emt 0:00:48]} Bb4 {[%emt 0:02:22][%cal Bd6b4,Bb4e7,Be7f6][%mdl 32]} 28. Rf1 {[%emt 0:04:01]} Rd5 {[%emt 0:01:21]} 29. g4 {[%emt 0:03:01] Prevents Rh5.} Nd7 {[%emt 0:02:22][%cal Bf6d7,Bd7c5,Bc5b3][%mdl 32]} (29... Bc3 $5 {[%cal Re7b4]}) 30. Qxe7 {[%emt 0:02:09]} Bxe7 {[%emt 0:00:03]} 31. c4 $1 {[%emt 0:00:04]} Rxd3 {[%emt 0:01:56]} 32. Rxd3 {[%emt 0:00:01]} Nc5 $36 {[%emt 0:00:04][%mdl 2048] Black has some pressure.} 33. Rd4 {[%emt 0:01:40]} Nb3 {[%emt 0:01:07]} 34. Re4 {[%emt 0:00:32] Strongly threatening Be3.} Nc5 $1 {[%emt 0:00:15][%csl LRa4,LRe4]} 35. Rd4 {[%emt 0:00:02]} Bf6 {[%emt 0:01:11]} 36. Rd6 {[%emt 0:00:54]} (36. Rf4 $1 $11) 36... Nxa4 $17 {[%emt 0:00:07]} 37. g5 {[%emt 0:00:46]} hxg5 {[%emt 0:00:29]} 38. Bxg5 {[%emt 0:00:01]} Rxc4 {[%emt 0:00:25]} (38... Bxg5 $17 39. Nxg5 Rxc4) 39. Bxf6 $11 {[%emt 0:00:21]} gxf6 {[%emt 0:00:02]} 40. Rd8 {[%emt 0:00:00]} Kf8 {[%emt 0:00:00]} 41. Rfd1 {[%emt 0:09:39] Ra8 is the strong threat.} Ke7 {[%emt 0:02:55] Hoping for ...Nc3.} 42. R8d4 {[%emt 0:09:31]} Bxb5 {[%emt 0:01:32] White must now prevent ...Rc8.} 43. Rxc4 {[%emt 0:00:37]} Bxc4 $15 {[%emt 0:00:03][%mdl 4096] Endgame KRN-KBN} 44. Nd4 {[%emt 0:01:27]} f5 {[%emt 0:09:25]} ({Black should try} 44... Ke8 $17 45. h4 Nc5) 45. f4 {[%emt 0:02:20]} Kf6 {[%emt 0:04:01]} 46. Rc1 {[%emt 0:00:40]} Bd5 {[%emt 0:01:59]} 47. Rc7 {[%emt 0:07:14]} ({White should play} 47. Kf2 $15) 47... Nc5 $17 {[%emt 0:03:38]} 48. Kf2 {[%emt 0:02:45]} a4 {[%emt 0:06:12][%cal Ba5a4,Ba4a3,Ba3a2][%mdl 32]} 49. Nf3 {[%emt 0:01:00]} Bxf3 {[%emt 0:04:48]} (49... e5 $17 {And now ...Nd3+ would win.} 50. fxe5+ Kg6) 50. Kxf3 {[%emt 0:00:01] KR-KN} Nb3 $1 {[%emt 0:00:01] aiming for ...a3.} 51. Ke3 $2 {[%emt 0:01:24][%mdl 8192] White does not recover from this.} (51. Ra7 $15) 51... a3 $19 {[%emt 0:00:23] ( -> ...a2)} 52. Rc2 {[%emt 0:00:01] [#]} b5 $1 {[%emt 0:00:05][%cal Bb6b5,Bb5b4,Bb4b3][%mdl 32]} 53. Rg2 {[%emt 0:00:58]} b4 {[%emt 0:02:15]} 54. h4 {[%emt 0:00:15]} Nc1 {[%emt 0:00:23] Black mates.} 55. Rg1 {[%emt 0:00:27]} a2 {[%emt 0:00:34]} 56. Rxc1 {[%emt 0:00:15]} b3 {[%emt 0:00:01]} 57. Kd4 {Weighted Error Value: White=0.41/Black=0.11 (very precise)} 0-1

[Event "EYTCC Open U18 2022"]
[Site "Thessaloniki"]
[Date "2022.07.17"]
[Round "6.33"]
[White "Magalakis, Stefanos"]
[Black "Stoimenidis, Dimitrios"]
[Result "1/2-1/2"]
[ECO "A46"]
[WhiteElo "2181"]
[BlackElo "1993"]
[Annotator "ChessBase"]
[PlyCount "57"]
[EventDate "2022.07.12"]
[EventType "team-tourn"]
[EventCountry "GRE"]
[SourceTitle "playchess.com"]
[Source "ChessBase"]
[SourceQuality "1"]
[WhiteTeam "Greece"]
[BlackTeam "Greece"]
[WhiteTeamCountry "GRE"]
[BlackTeamCountry "GRE"]
[TimeControl "40/5400+30:1800+30"]

1. d4 {[%emt 0:00:05]} Nf6 {[%emt 0:00:11]} 2. Nf3 {[%emt 0:00:06]} e6 {[%emt 0:00:07]} 3. Bg5 {[%emt 0:00:05]} c5 {[%emt 0:00:16]} 4. e3 {[%emt 0:00:04]} Be7 {[%emt 0:00:38]} 5. Nbd2 {[%emt 0:00:20]} cxd4 {[%emt 0:00:27]} 6. exd4 {[%emt 0:00:09]} b6 {[%emt 0:00:10]} 7. Bd3 {[%emt 0:00:36]} Bb7 {[%emt 0:00:09]} 8. c3 {[%emt 0:00:56]} d6 {[%emt 0:00:38]} 9. Bxf6 {[%emt 0:08:13]} Bxf6 {[%emt 0:00:09]} 10. Qe2 {[%emt 0:00:07]} Nd7 {[%emt 0:00:28]} 11. h4 {[%emt 0:01:33]} Be7 {[%emt 0:09:26]} 12. O-O-O {[%emt 0:09:21]} Qc7 {[%emt 0:02:24]} 13. Ng5 {[%emt 0:16:39]} Nf6 {[%emt 0:09:58]} 14. Rhe1 {[%emt 0:13:39]} h6 {[%emt 0:11:19]} 15. Bb5+ {[%emt 0:04:31]} Kf8 {[%emt 0:00:23]} 16. Ngf3 {[%emt 0:03:25]} a6 {[%emt 0:04:57]} 17. Bd3 {[%emt 0:00:39]} b5 {[%emt 0:02:00]} 18. Kb1 {[%emt 0:02:12]} Nd5 {[%emt 0:02:46]} 19. g3 {[%emt 0:02:02]} Nb6 {[%emt 0:00:34]} 20. Rc1 {[%emt 0:04:37]} g6 {[%emt 0:07:14]} 21. h5 {[%emt 0:13:19]} g5 {[%emt 0:02:56]} 22. Nh2 {[%emt 0:04:17]} Bd5 {[%emt 0:03:39]} 23. Ng4 {[%emt 0:01:09]} Nc4 {[%emt 0:03:49]} 24. Ne3 {[%emt 0:01:05]} Nxd2+ {[%emt 0:09:52]} 25. Qxd2 {[%emt 0:00:04]} Bf3 {[%emt 0:00:09]} 26. Be2 {[%emt 0:03:04]} Be4+ {[%emt 0:02:43]} 27. Bd3 {[%emt 0:00:09]} Bf3 {[%emt 0:02:48]} 28. Be2 {[%emt 0:02:51]} Be4+ {[%emt 0:00:57]} 29. Bd3 {[%emt 0:02:23]} 1/2-1/2

[Event "EYTCC Open U18 2022"]
[Site "Thessaloniki"]
[Date "2022.07.17"]
[Round "6.34"]
[White "Karamichos, Michail"]
[Black "Georgiadis, Athanasios Kat"]
[Result "1/2-1/2"]
[ECO "A48"]
[WhiteElo "1839"]
[BlackElo "1689"]
[Annotator "NA COMBH"]
[PlyCount "128"]
[EventDate "2022.07.12"]
[EventType "team-tourn"]
[EventCountry "GRE"]
[SourceTitle "playchess.com"]
[Source "ChessBase"]
[SourceQuality "1"]
[WhiteTeam "Greece"]
[BlackTeam "Greece"]
[WhiteTeamCountry "GRE"]
[BlackTeamCountry "GRE"]
[TimeControl "40/5400+30:1800+30"]

1. d4 {[%emt 0:00:07]} Nf6 {[%emt 0:00:07]} 2. Nf3 {[%emt 0:00:06]} g6 {[%emt 0:00:04]} 3. Bg5 {[%emt 0:00:13]} Bg7 {[%emt 0:00:07]} 4. Nbd2 {[%emt 0:00:11]} O-O {[%emt 0:00:11]} 5. c3 {[%emt 0:00:05]} d5 {[%emt 0:00:03]} 6. e3 {[%emt 0:00:06]} h6 {[%emt 0:00:26]} 7. Bf4 {[%emt 0:02:46]} Nh5 {[%emt 0:01:29]} 8. Be5 {[%emt 0:00:25]} f6 {[%emt 0:06:11]} 9. Bg3 {[%emt 0:02:09]} Nxg3 {[%emt 0:07:57]} 10. hxg3 {[%emt 0:00:08]} e5 {[%emt 0:08:49]} 11. Qb3 {[%emt 0:10:14]} exd4 {[%emt 0:10:08]} 12. cxd4 {[%emt 0:01:42]} c6 {[%emt 0:01:43]} 13. Bd3 {[%emt 0:01:51]} f5 {[%emt 0:03:25]} 14. O-O {[%emt 0:15:47]} g5 {[%emt 0:06:11]} 15. Qc2 {[%emt 0:04:58]} Be6 {[%emt 0:08:44]} 16. b4 {[%emt 0:01:16]} Nd7 {[%emt 0:01:12]} 17. a4 {[%emt 0:01:08]} Qe7 {[%emt 0:03:27]} 18. Rab1 {[%emt 0:01:25]} Rac8 {[%emt 0:06:45]} 19. Nb3 {[%emt 0:11:32]} b6 {[%emt 0:11:13]} 20. Qd2 {[%emt 0:02:04]} Qe8 {[%emt 0:02:34]} 21. Nc1 {[%emt 0:07:54]} Nf6 {[%emt 0:00:19]} 22. Ne2 {[%emt 0:05:56]} Ne4 {[%emt 0:00:56]} 23. Qa2 {[%emt 0:04:00]} Kh8 {[%emt 0:04:46]} 24. Qa3 {[%emt 0:03:27]} Bf7 {[%emt 0:02:53]} 25. Rfd1 {[%emt 0:09:15]} Qe6 {[%emt 0:01:23]} 26. Ne1 {[%emt 0:00:31]} Rfe8 {[%emt 0:01:19]} 27. Nc2 {[%emt 0:00:06]} Bf8 {[%emt 0:01:23]} 28. Qb2 {[%emt 0:00:45]} Kg8 {[%emt 0:00:50]} 29. Rbc1 {[%emt 0:00:47]} Bd6 {[%emt 0:00:15]} 30. Nc3 {[%emt 0:01:55]} f4 {[%emt 0:05:42]} 31. gxf4 {[%emt 0:06:56]} gxf4 {[%emt 0:00:14]} 32. Bxe4 {[%emt 0:02:23]} dxe4 {[%emt 0:00:10]} 33. exf4 {[%emt 0:00:25]} Bxf4 {[%emt 0:01:42]} 34. Ne3 {[%emt 0:00:04]} Bxe3 {[%emt 0:00:53]} 35. fxe3 {[%emt 0:00:05]} Qg6 {[%emt 0:00:45]} 36. Ne2 {[%emt 0:00:22]} Kh7 {[%emt 0:01:43]} 37. Nf4 {[%emt 0:00:04]} Qg5 {[%emt 0:00:13]} 38. b5 {[%emt 0:01:35]} cxb5 {[%emt 0:01:24]} 39. Qxb5 {[%emt 0:00:32]} Qxb5 {[%emt 0:00:51]} 40. axb5 {[%emt 0:00:00]} Bc4 {[%emt 0:00:00]} 41. Rb1 {[%emt 0:02:45]} Kg7 {[%emt 0:03:12]} 42. Rb4 {[%emt 0:02:32]} Kf6 {[%emt 0:06:33]} 43. Kf2 {[%emt 0:11:42]} Ke7 {[%emt 0:03:13]} 44. Rh1 {[%emt 0:01:44]} Bf7 {[%emt 0:01:25]} 45. Rb2 {[%emt 0:04:06]} Rh8 {[%emt 0:02:15]} 46. Ke2 {[%emt 0:01:34]} Kd6 {[%emt 0:00:37]} 47. Kd2 {[%emt 0:00:11]} h5 {[%emt 0:01:02]} 48. Rb4 {[%emt 0:00:54]} Rc7 {[%emt 0:00:37]} 49. Rb2 {[%emt 0:02:02]} Rcc8 {[%emt 0:02:01]} 50. Rh4 {[%emt 0:00:39]} Rhg8 {[%emt 0:04:10]} 51. Rh1 {[%emt 0:03:09]} Rg5 {[%emt 0:01:32]} 52. Rb4 {[%emt 0:01:35]} Rc7 {[%emt 0:03:47]} 53. Rhb1 {[%emt 0:00:51]} Rg8 {[%emt 0:01:44]} 54. Ra1 {[%emt 0:01:06]} Rgc8 {[%emt 0:01:50]} 55. Rb2 {[%emt 0:00:08]} Rg8 {[%emt 0:00:39]} 56. Ke2 {[%emt 0:01:05]} Bc4+ {[%emt 0:00:42]} 57. Kd2 {[%emt 0:01:15]} Bf7 {[%emt 0:00:05]} 58. Rc2 {[%emt 0:03:21]} Rxc2+ {[%emt 0:02:50]} 59. Kxc2 {[%emt 0:00:04]} Rg7 {[%emt 0:00:57]} 60. Kc3 {[%emt 0:01:08]} Be8 {[%emt 0:00:50]} 61. Rb1 {[%emt 0:02:00]} Rc7+ {[%emt 0:01:02]} 62. Kd2 {[%emt 0:00:09]} Rg7 {[%emt 0:00:18]} 63. Rb2 {[%emt 0:00:43]} Rg5 {[%emt 0:00:35]} 64. Ra2 {[%emt 0:00:06]} Rg7 {[%emt 0:00:15]} 1/2-1/2